fUSD/lending_fUSD_20241223
["ID","MTS","AMOUNT","RATE_DAILY","PERIOD"]
[346458629,1734983481474,-500.0,0.00015068,2]
[346458630,1734983481483,-500.0,0.00015068,2]
[346458631,1734983481492,-7966.95,0.00015068,2]
[346458632,1734983481501,-1003.84,0.00015068,2]
[346458633,1734983481510,-2515.91,0.00015068,2]
[346458634,1734983481520,-2630.63,0.00015068,2]
[346458635,1734983481531,-698.68,0.00015068,2]
[346458636,1734983481540,-500.0,0.00015068,2]
[346458637,1734983481549,-839.13,0.00015068,2]
[346458638,1734983481558,-9927.13,0.00015068,2]
[346458639,1734983481567,-1217.3,0.00015068,2]
[346458640,1734983481576,-2519.57,0.00015068,2]
[346458641,1734983481586,-1299.48,0.00015068,2]
[346458642,1734983481595,-4244.12,0.00015068,2]
[346458643,1734983481603,-1241.24,0.00015068,2]
[346458644,1734983481613,-500.0,0.00015068,2]
[346458645,1734983481623,-1685.46,0.00015068,2]
[346458646,1734983481631,-500.0,0.00015068,2]
[346458647,1734983481640,-1846.67,0.00015068,2]
[346458648,1734983481650,-500.0,0.00015068,2]
[346458649,1734983481659,-614.81,0.00015068,2]
[346458650,1734983481668,-3928.29,0.00015068,2]
[346458651,1734983481677,-500.0,0.00015068,2]
[346458652,1734983481685,-500.0,0.00015068,2]
[346458653,1734983481694,-500.0,0.00015068,2]
[346458654,1734983481703,-4088.25,0.00015068,2]
[346458655,1734983481712,-2122.09,0.00015068,2]
[346458656,1734983481721,-695.21,0.00015068,2]
[346458657,1734983481731,-3723.91,0.00015068,2]
[346458658,1734983481740,-1404.9,0.00015068,2]
[346458659,1734983481749,-500.0,0.00015068,2]
[346458660,1734983481759,-8672.72,0.00015068,2]
[346458661,1734983481768,-500.0,0.00015068,2]
[346458662,1734983481779,-500.0,0.00015068,2]
[346458663,1734983481788,-500.0,0.00015068,2]
[346458664,1734983481799,-1063.46,0.00015068,2]
[346458665,1734983481808,-7447.88,0.00015068,2]
[346458666,1734983481819,-26356.9,0.00015068,2]
[346458667,1734983481828,-8864.44,0.00015068,2]
[346458668,1734983481838,-2573.11,0.00015068,2]
[346458669,1734983481848,-3886.04,0.00015068,2]
[346458670,1734983481857,-1878.68,0.00015068,2]
[346458671,1734983481866,-621.52155946,0.00015068,2]
[346458672,1734983481875,-5445.13,0.00015068,2]
[346458673,1734983481885,-1319.96,0.00015068,2]
[346458674,1734983481895,-500.0,0.00015068,2]
[346458675,1734983481904,-3366.1,0.00015068,2]
[346458676,1734983481914,-500.0,0.00015068,2]
[346458677,1734983481923,-8257.73,0.00015068,2]
[346458678,1734983481933,-1348.11,0.00015068,2]
[346458679,1734983481942,-1344.55,0.00015068,2]
[346458680,1734983481951,-1044.67,0.00015068,2]
[346458681,1734983481960,-590.09,0.00015068,2]
[346458682,1734983481969,-1845.89,0.00015068,2]
[346458683,1734983481978,-2303.4,0.00015068,2]
[346458684,1734983481987,-500.0,0.00015068,2]
[346458685,1734983481996,-3629.68,0.00015068,2]
[346458686,1734983482006,-500.0,0.00015068,2]
[346458687,1734983482015,-646.74,0.00015068,2]
[346458688,1734983482024,-1782.54,0.00015068,2]
[346458689,1734983482034,-1508.2,0.00015068,2]
[346458690,1734983482044,-3087.07,0.00015068,2]
[346458691,1734983482053,-500.0,0.00015068,2]
[346458692,1734983482063,-1473.1,0.00015068,2]
[346458693,1734983482073,-2479.51,0.00015068,2]
[346458694,1734983482082,-4816.5,0.00015068,2]
[346458695,1734983482092,-594.99,0.00015068,2]
[346458696,1734983482101,-614.37,0.00015068,2]
[346458697,1734983482111,-1302.53,0.00015068,2]
[346458698,1734983482120,-2115.39,0.00015068,2]
[346458699,1734983482130,-1084.22,0.00015068,2]
[346458700,1734983482139,-4086.58,0.00015068,2]
[346458701,1734983482149,-508.76720034,0.00015068,2]
[346458702,1734983482158,-1886.31,0.00015068,2]
[346458703,1734983482168,-296.58,0.00015068,2]
[346458704,1734983482177,-186.48170988,0.00015069,2]
[346458705,1734983482186,-501.3833241,0.00015079,2]
[346458706,1734983482196,-1000.0,0.00015079,2]
[346458707,1734983482205,-1000.0,0.00015108,2]
[346458708,1734983482214,-4019.61,0.00015138,2]
[346458709,1734983482224,-1000.0,0.00015184,2]
[346458710,1734983482235,-253.89797307,0.00015191,2]
[346458711,1734983482244,-562.42,0.00015204,2]
[346458712,1734983482255,-925.54014375,0.00015239,2]
[346458713,1734983482265,-514.00667512,0.00015264,2]
[346458714,1734983482276,-1000.0,0.00015278,2]
[346458715,1734983482286,-2490.49522678,0.00015329,2]
[346458716,1734983482295,-212.21,0.00015336,2]
[346458717,1734983482306,-562.42,0.00015341,2]
[346458718,1734983482316,-3858.37,0.00015341,2]
[346458719,1734983482326,-4101.31,0.00015341,2]
[346458720,1734983482336,-7168.53,0.00015341,2]
[346458721,1734983482346,-7733.77,0.00015341,2]
[346458722,1734983482356,-37490.71,0.00015341,2]
[346458723,1734983482366,-4045.76,0.00015341,2]
[346458724,1734983482375,-3336.73,0.00015341,2]
[346458725,1734983482385,-1980.4,0.00015341,2]
[346458726,1734983482395,-5333.98,0.00015341,2]
[346458727,1734983482404,-27080.99,0.00015341,2]
[346458728,1734983482414,-1435.78,0.00015341,2]
[346458729,1734983482423,-151.0,0.00015341,2]
[346458730,1734983482432,-3942.55,0.00015341,2]
[346458731,1734983482442,-3489.33,0.00015341,2]
[346458732,1734983482451,-151.0,0.00015341,2]
[346458733,1734983482461,-2639.66,0.00015341,2]
[346458734,1734983482470,-151.0,0.00015341,2]
[346458735,1734983482480,-5019.99,0.00015341,2]
[346458736,1734983482490,-500.0,0.00015341,2]
[346458737,1734983482499,-1258.46,0.00015341,2]
[346458738,1734983482509,-3190.49,0.00015341,2]
[346458739,1734983482519,-3377.35,0.00015341,2]
[346458740,1734983482531,-151.0,0.00015341,2]
[346458741,1734983482541,-757.99,0.00015342,2]
[346458742,1734983482550,-1506.47,0.00015342,2]
[346458743,1734983482559,-500.0,0.00015342,2]
[346458744,1734983482568,-622.17,0.00015342,2]
[346458745,1734983482577,-500.0,0.00015342,2]
[346458746,1734983482587,-745.34,0.00015342,2]
[346458747,1734983482596,-1355.56,0.00015342,2]
[346458748,1734983482606,-500.0,0.00015342,2]
[346458749,1734983482615,-508.56468473,0.00015342,2]
[346458750,1734983482625,-500.0,0.00015342,2]
[346458751,1734983482634,-943.39,0.00015342,2]
[346458752,1734983482644,-500.0,0.00015342,2]
[346458753,1734983482653,-500.0,0.00015342,2]
[346458754,1734983482662,-500.0,0.00015342,2]
[346458755,1734983482671,-500.0,0.00015342,2]
[346458756,1734983482680,-500.0,0.00015342,2]
[346458757,1734983482689,-1112.52,0.00015342,2]
[346458758,1734983482699,-500.0,0.00015342,2]
[346458759,1734983482708,-500.0,0.00015342,2]
[346458760,1734983482718,-500.0,0.00015342,2]
[346458761,1734983482727,-790.69,0.00015342,2]
[346458762,1734983482736,-500.0,0.00015342,2]
[346458763,1734983482745,-855.0,0.00015342,2]
[346458764,1734983482754,-500.0,0.00015342,2]
[346458765,1734983482764,-876.69,0.00015342,2]
[346458766,1734983482773,-562.06,0.00015342,2]
[346458767,1734983482784,-500.0,0.00015342,2]
[346458768,1734983482794,-847.08,0.00015342,2]
[346458769,1734983482804,-867.59,0.00015342,2]
[346458770,1734983482813,-500.0,0.00015342,2]
[346458771,1734983482823,-895.5,0.00015342,2]
[346458772,1734983482832,-500.0,0.00015342,2]
[346458773,1734983482842,-500.0,0.00015342,2]
[346458774,1734983482851,-500.0,0.00015342,2]
[346458775,1734983482861,-1304.71,0.00015342,2]
[346458776,1734983482871,-500.0,0.00015342,2]
[346458777,1734983482880,-1693.88,0.00015342,2]
[346458778,1734983482890,-500.0,0.00015342,2]
[346458779,1734983482900,-500.0,0.00015342,2]
[346458780,1734983482910,-536.47,0.00015342,2]
[346458781,1734983482919,-500.0,0.00015342,2]
[346458782,1734983482929,-500.0,0.00015342,2]
[346458783,1734983482938,-500.0,0.00015342,2]
[346458784,1734983482948,-704.56,0.00015342,2]
[346458785,1734983482958,-1063.61,0.00015342,2]
[346458786,1734983482969,-729.4,0.00015342,2]
[346458787,1734983482979,-500.0,0.00015342,2]
[346458788,1734983482989,-500.0,0.00015342,2]
[346458789,1734983482999,-500.0,0.00015342,2]
[346458790,1734983483009,-1288.05,0.00015342,2]
[346458791,1734983483019,-500.0,0.00015342,2]
[346458792,1734983483031,-500.0,0.00015342,2]
[346458793,1734983483040,-876.88,0.00015342,2]
[346458794,1734983483050,-500.0,0.00015342,2]
[346458795,1734983483060,-500.0,0.00015342,2]
[346458796,1734983483070,-500.0,0.00015342,2]
[346458797,1734983483079,-500.0,0.00015342,2]
[346458798,1734983483089,-500.0,0.00015342,2]
[346458799,1734983483099,-627.92,0.00015342,2]
[346458800,1734983483109,-837.11,0.00015342,2]
[346458801,1734983483119,-500.0,0.00015342,2]
[346458802,1734983483128,-500.0,0.00015342,2]
[346458803,1734983483138,-715.29,0.00015342,2]
[346458804,1734983483151,-500.0,0.00015342,2]
[346458805,1734983483161,-500.0,0.00015342,2]
[346458806,1734983483171,-503.14,0.00015342,2]
[346458807,1734983483180,-500.0,0.00015342,2]
[346458808,1734983483190,-693.1,0.00015342,2]
[346458809,1734983483200,-1639.04,0.00015342,2]
[346458810,1734983483210,-500.0,0.00015342,2]
[346458811,1734983483223,-500.0,0.00015342,2]
[346458812,1734983483233,-909.84,0.00015342,2]
[346458813,1734983483242,-1025.51,0.00015342,2]
[346458814,1734983483252,-155.940262,0.00015342,2]
[346458815,1734983483263,-2789.796411,0.00015342,2]
[346458816,1734983483273,-500.0,0.00015342,2]
[346458817,1734983483284,-3350.644444,0.00015342,2]
[346458818,1734983483294,-1267.55,0.00015342,2]
[346458819,1734983483306,-500.0,0.00015342,2]
[346458820,1734983483317,-500.0,0.00015342,2]
[346458821,1734983483326,-955.34,0.00015342,2]
[346458822,1734983483336,-500.0,0.00015342,2]
[346458823,1734983483345,-500.0,0.00015342,2]
[346458824,1734983483356,-1230.42,0.00015342,2]
[346458825,1734983483365,-500.0,0.00015342,2]
[346458826,1734983483375,-1124.42,0.00015342,2]
[346458827,1734983483385,-500.0,0.00015342,2]
[346458828,1734983483395,-649.71,0.00015342,2]
[346458829,1734983483405,-403.34409484,0.00015342,2]
[346458830,1734983483416,-500.0,0.00015342,2]
[346458831,1734983483426,-713.56,0.00015342,2]
[346458832,1734983483435,-500.0,0.00015342,2]
[346458833,1734983483445,-500.0,0.00015342,2]
[346458834,1734983483455,-500.0,0.00015342,2]
[346458835,1734983483464,-1323.13,0.00015342,2]
[346458836,1734983483474,-500.0,0.00015342,2]
[346458837,1734983483484,-958.59,0.00015342,2]
[346458838,1734983483493,-938.95,0.00015342,2]
[346458839,1734983483502,-1909.64,0.00015342,2]
[346458840,1734983483511,-1467.51,0.00015342,2]
[346458841,1734983483521,-958.62,0.00015342,2]
[346458842,1734983483531,-500.0,0.00015342,2]
[346458843,1734983483541,-563.5,0.00015342,2]
[346458844,1734983483551,-1353.65,0.00015342,2]
[346458845,1734983483561,-743.02,0.00015342,2]
[346458846,1734983483571,-500.0,0.00015342,2]
[346458847,1734983483580,-2120.2,0.00015342,2]
[346458848,1734983483590,-768.8,0.00015342,2]
[346458849,1734983483600,-999.63,0.00015342,2]
[346458850,1734983483610,-500.0,0.00015342,2]
[346458851,1734983483620,-730.43,0.00015342,2]
[346458852,1734983483631,-1571.45,0.00015342,2]
[346458853,1734983483641,-712.07,0.00015342,2]
[346458854,1734983483650,-520.74348298,0.00015342,2]
[346458855,1734983483660,-1386.96,0.00015342,2]
[346458856,1734983483670,-2428.76,0.00015342,2]
[346458857,1734983483679,-1431.08,0.00015342,2]
[346458858,1734983483689,-2535.1,0.00015342,2]
[346458859,1734983483699,-590.71,0.00015342,2]
[346458860,1734983483708,-500.0,0.00015342,2]
[346458861,1734983483718,-500.0,0.00015342,2]
[346458862,1734983483728,-500.0,0.00015342,2]
[346458863,1734983483737,-500.0,0.00015342,2]
[346458864,1734983483747,-500.0,0.00015342,2]
[346458865,1734983483756,-647.68,0.00015342,2]
[346458866,1734983483766,-2179.1,0.00015342,2]
[346458867,1734983483776,-503.57,0.00015342,2]
[346458868,1734983483788,-1741.94,0.00015342,2]
[346458869,1734983483799,-533.93,0.00015342,2]
[346458870,1734983483808,-500.0,0.00015342,2]
[346458871,1734983483818,-506.11,0.00015342,2]
[346458872,1734983483828,-2546.21,0.00015342,2]
[346458873,1734983483837,-500.0,0.00015342,2]
[346458874,1734983483847,-529.52,0.00015342,2]
[346458875,1734983483857,-2384.93,0.00015342,2]
[346458876,1734983483867,-500.0,0.00015342,2]
[346458877,1734983483878,-500.0,0.00015342,2]
[346458878,1734983483887,-1472.51,0.00015342,2]
[346458879,1734983483897,-739.46,0.00015342,2]
[346458880,1734983483907,-2040.74,0.00015342,2]
[346458881,1734983483917,-500.0,0.00015342,2]
[346458882,1734983483927,-500.0,0.00015342,2]
[346458883,1734983483937,-2108.54,0.00015342,2]
[346458884,1734983483946,-1103.36,0.00015342,2]
[346458885,1734983483956,-603.59,0.00015342,2]
[346458886,1734983483966,-500.0,0.00015342,2]
[346458887,1734983483975,-1314.39,0.00015342,2]
[346458888,1734983483985,-681.79,0.00015342,2]
[346458889,1734983483995,-500.0,0.00015342,2]
[346458890,1734983484004,-1474.25,0.00015342,2]
[346458891,1734983484014,-569.96,0.00015342,2]
[346458892,1734983484024,-500.0,0.00015342,2]
[346458893,1734983484034,-500.0,0.00015342,2]
[346458894,1734983484044,-2526.97,0.00015342,2]
[346458895,1734983484054,-588.45,0.00015342,2]
[346458896,1734983484064,-500.0,0.00015342,2]
[346458897,1734983484073,-562.03,0.00015342,2]
[346458898,1734983484083,-2097.31,0.00015342,2]
[346458899,1734983484093,-2272.82,0.00015342,2]
[346458900,1734983484103,-1399.67,0.00015342,2]
[346458901,1734983484113,-1081.13,0.00015342,2]
[346458902,1734983484357,-952.35,0.00015342,2]
[346458903,1734983484368,-766.53,0.00015342,2]
[346458904,1734983484377,-500.0,0.00015342,2]
[346458905,1734983484387,-971.56,0.00015342,2]
[346458906,1734983484396,-1033.9,0.00015342,2]
[346458907,1734983484406,-908.96,0.00015342,2]
[346458908,1734983484415,-1920.11,0.00015342,2]
[346458909,1734983484425,-500.0,0.00015342,2]
[346458910,1734983484434,-500.0,0.00015342,2]
[346458911,1734983484444,-1220.95,0.00015342,2]
[346458912,1734983484454,-500.0,0.00015342,2]
[346458913,1734983484463,-549.68,0.00015342,2]
[346458914,1734983484473,-2597.65,0.00015342,2]
[346458915,1734983484482,-500.0,0.00015342,2]
[346458916,1734983484491,-1679.77,0.00015342,2]
[346458917,1734983484501,-500.0,0.00015342,2]
[346458918,1734983484510,-500.0,0.00015342,2]
[346458919,1734983484520,-500.0,0.00015342,2]
[346458920,1734983484530,-2479.89,0.00015342,2]
[346458921,1734983484539,-500.0,0.00015342,2]
[346458922,1734983484549,-506.75264718,0.00015342,2]
[346458923,1734983484558,-500.0,0.00015342,2]
[346458924,1734983484567,-884.3,0.00015342,2]
[346458925,1734983484577,-533.99,0.00015342,2]
[346458926,1734983484586,-1337.77,0.00015342,2]
[346458927,1734983484595,-1234.01,0.00015342,2]
[346458928,1734983484604,-500.0,0.00015342,2]
[346458929,1734983484614,-500.0,0.00015342,2]
[346458930,1734983484624,-1693.27,0.00015342,2]
[346458931,1734983484633,-211.36363632,0.00015342,2]
[346458932,1734983484642,-1639.66,0.00015342,2]
[346458933,1734983484652,-500.0,0.00015342,2]
[346458934,1734983484661,-1258.33,0.00015342,2]
[346458935,1734983484670,-500.0,0.00015342,2]
[346458936,1734983484680,-865.68,0.00015342,2]
[346458937,1734983484689,-500.0,0.00015342,2]
[346458938,1734983484698,-259.99281457,0.00015342,2]
[346458939,1734983484707,-1242.29,0.00015342,2]
[346458940,1734983484716,-558.44,0.00015342,2]
[346458941,1734983484725,-1883.5,0.00015342,2]
[346458942,1734983484735,-500.0,0.00015342,2]
[346458943,1734983484744,-500.0,0.00015342,2]
[346458944,1734983484753,-500.0,0.00015342,2]
[346458945,1734983484762,-500.0,0.00015342,2]
[346458946,1734983484771,-1457.31,0.00015342,2]
[346458947,1734983484781,-500.0,0.00015342,2]
[346458948,1734983484791,-500.0,0.00015342,2]
[346458949,1734983484800,-744.66,0.00015342,2]
[346458950,1734983484810,-614.05,0.00015342,2]
[346458951,1734983484818,-505.95,0.00015342,2]
[346458952,1734983484827,-454.19928918,0.00015342,2]
[346458953,1734983484836,-1106.29,0.00015342,2]
[346458954,1734983484846,-825.99,0.00015342,2]
[346458955,1734983484855,-614.73,0.00015342,2]
[346458956,1734983484864,-598.56,0.00015342,2]
[346458957,1734983484873,-2428.41,0.00015342,2]
[346458958,1734983484882,-500.0,0.00015342,2]
[346458959,1734983484892,-647.89,0.00015342,2]
[346458960,1734983484901,-555.89,0.00015342,2]
[346458961,1734983484910,-1850.68,0.00015342,2]
[346458962,1734983484919,-733.51,0.00015342,2]
[346458963,1734983484929,-1395.61,0.00015342,2]
[346458964,1734983484938,-500.0,0.00015342,2]
[346458965,1734983484947,-500.0,0.00015342,2]
[346458966,1734983484956,-500.0,0.00015342,2]
[346458967,1734983484966,-1898.84,0.00015342,2]
[346458968,1734983484975,-1190.22,0.00015342,2]
[346458969,1734983484984,-520.67,0.00015342,2]
[346458970,1734983484993,-659.78,0.00015342,2]
[346458971,1734983485003,-500.0,0.00015342,2]
[346458972,1734983485013,-706.12,0.00015342,2]
[346458973,1734983485022,-1161.74,0.00015342,2]
[346458974,1734983485033,-500.0,0.00015342,2]
[346458975,1734983485042,-792.15,0.00015342,2]
[346458976,1734983485051,-1198.3,0.00015342,2]
[346458977,1734983485061,-1131.14,0.00015342,2]
[346458978,1734983485070,-500.0,0.00015342,2]
[346458979,1734983485079,-1629.86,0.00015342,2]
[346458980,1734983485089,-500.0,0.00015342,2]
[346458981,1734983485099,-977.33,0.00015342,2]
[346458982,1734983485108,-500.0,0.00015342,2]
[346458983,1734983485117,-548.69,0.00015342,2]
[346458984,1734983485127,-500.0,0.00015342,2]
[346458985,1734983485136,-500.0,0.00015342,2]
[346458986,1734983485145,-628.27,0.00015342,2]
[346458987,1734983485154,-599.12,0.00015342,2]
[346458988,1734983485163,-500.0,0.00015342,2]
[346458989,1734983485173,-1391.9,0.00015342,2]
[346458990,1734983485182,-2005.44,0.00015342,2]
[346458991,1734983485191,-500.0,0.00015342,2]
[346458992,1734983485200,-500.0,0.00015342,2]
[346458993,1734983485209,-500.0,0.00015342,2]
[346458994,1734983485219,-1352.65,0.00015342,2]
[346458995,1734983485229,-2203.91,0.00015342,2]
[346458996,1734983485239,-929.9,0.00015342,2]
[346458997,1734983485248,-1256.82,0.00015342,2]
[346458998,1734983485257,-582.13,0.00015342,2]
[346458999,1734983485267,-500.0,0.00015342,2]
[346459000,1734983485276,-1626.83,0.00015342,2]
[346459001,1734983485286,-821.99,0.00015342,2]
[346459002,1734983485295,-500.0,0.00015342,2]
[346459003,1734983485305,-500.0,0.00015342,2]
[346459004,1734983485314,-500.0,0.00015342,2]
[346459005,1734983485324,-1342.26,0.00015342,2]
[346459006,1734983485333,-6402.42,0.00015342,2]
[346459007,1734983485342,-926.8,0.00015342,2]
[346459008,1734983485351,-1227.45,0.00015342,2]
[346459009,1734983485361,-500.0,0.00015342,2]
[346459010,1734983485370,-1859.49,0.00015342,2]
[346459011,1734983485379,-151.26046623,0.00015342,2]
[346459012,1734983485388,-614.72,0.00015342,2]
[346459013,1734983485397,-1326.67,0.00015342,2]
[346459014,1734983485407,-500.0,0.00015342,2]
[346459015,1734983485416,-500.0,0.00015342,2]
[346459016,1734983485425,-596.52,0.00015342,2]
[346459017,1734983485434,-1015.69,0.00015342,2]
[346459018,1734983485444,-500.0,0.00015342,2]
[346459019,1734983485453,-500.0,0.00015342,2]
[346459020,1734983485462,-1210.05,0.00015342,2]
[346459021,1734983485471,-1848.4,0.00015342,2]
[346459022,1734983485481,-574.22,0.00015342,2]
[346459023,1734983485490,-1285.29,0.00015342,2]
[346459024,1734983485500,-500.0,0.00015342,2]
[346459025,1734983485509,-500.0,0.00015342,2]
[346459026,1734983485519,-225.45486759,0.00015342,2]
[346459027,1734983485528,-500.0,0.00015342,2]
[346459028,1734983485538,-2751.45,0.00015342,2]
[346459029,1734983485547,-500.0,0.00015342,2]
[346459030,1734983485556,-1128.87,0.00015342,2]
[346459031,1734983485565,-500.0,0.00015342,2]
[346459032,1734983485575,-683.58,0.00015342,2]
[346459033,1734983485584,-6056.43,0.00015342,2]
[346459034,1734983485593,-521.15485488,0.00015342,2]
[346459035,1734983485603,-1154.43,0.00015342,2]
[346459036,1734983485613,-500.0,0.00015342,2]
[346459037,1734983485622,-500.0,0.00015342,2]
[346459038,1734983485632,-11553.88,0.00015342,2]
[346459039,1734983485642,-3461.58,0.00015342,2]
[346459040,1734983485651,-2563.93,0.00015342,2]
[346459041,1734983485660,-1292.7,0.00015342,2]
[346459042,1734983485669,-500.0,0.00015342,2]
[346459043,1734983485679,-2781.72,0.00015342,2]
[346459044,1734983485688,-500.0,0.00015342,2]
[346459045,1734983485697,-1045.69,0.00015342,2]
[346459046,1734983485706,-500.0,0.00015342,2]
[346459047,1734983485716,-554.57,0.00015342,2]
[346459048,1734983485725,-1274.89,0.00015342,2]
[346459049,1734983485735,-1146.69,0.00015342,2]
[346459050,1734983485744,-500.0,0.00015342,2]
[346459051,1734983485753,-948.38,0.00015342,2]
[346459052,1734983485763,-500.0,0.00015342,2]
[346459053,1734983485772,-500.0,0.00015342,2]
[346459054,1734983485781,-1729.1,0.00015342,2]
[346459055,1734983485791,-1060.71,0.00015342,2]
[346459056,1734983485801,-15575.1,0.00015342,2]
[346459057,1734983485810,-1437.23,0.00015342,2]
[346459058,1734983485820,-500.0,0.00015342,2]
[346459059,1734983485829,-3891.1,0.00015342,2]
[346459060,1734983485839,-2142.93,0.00015342,2]
[346459061,1734983485848,-920.78,0.00015342,2]
[346459062,1734983485858,-736.03,0.00015342,2]
[346459063,1734983485867,-1226.17,0.00015342,2]
[346459064,1734983485876,-369.76126535,0.00015342,2]
[346459065,1734983485886,-500.0,0.00015342,2]
[346459066,1734983485896,-1074.33,0.00015342,2]
[346459067,1734983485906,-500.0,0.00015342,2]
[346459068,1734983485915,-6302.87,0.00015342,2]
[346459069,1734983485925,-3579.93,0.00015342,2]
[346459070,1734983485935,-678.95,0.00015342,2]
[346459071,1734983485945,-500.0,0.00015342,2]
[346459072,1734983485954,-1468.11,0.00015342,2]
[346459073,1734983485964,-695.77,0.00015342,2]
[346459074,1734983485974,-7214.02,0.00015342,2]
[346459075,1734983485983,-500.0,0.00015342,2]
[346459076,1734983485992,-6586.38,0.00015342,2]
[346459077,1734983486002,-500.0,0.00015342,2]
[346459078,1734983486011,-1410.03,0.00015342,2]
[346459079,1734983486020,-500.0,0.00015342,2]
[346459080,1734983486030,-2688.66,0.00015342,2]
[346459081,1734983486039,-1472.35,0.00015342,2]
[346459082,1734983486049,-500.0,0.00015342,2]
[346459083,1734983486058,-1255.72,0.00015342,2]
[346459084,1734983486067,-1233.64,0.00015342,2]
[346459085,1734983486077,-701.82,0.00015342,2]
[346459086,1734983486087,-5090.58,0.00015342,2]
[346459087,1734983486097,-500.0,0.00015342,2]
[346459088,1734983486107,-500.0,0.00015342,2]
[346459089,1734983486116,-3635.2,0.00015342,2]
[346459090,1734983486125,-869.32,0.00015342,2]
[346459091,1734983486135,-1046.58,0.00015342,2]
[346459092,1734983486145,-627.84,0.00015342,2]
[346459093,1734983486155,-4671.0,0.00015342,2]
[346459094,1734983486164,-4686.61,0.00015342,2]
[346459095,1734983486174,-500.0,0.00015342,2]
[346459096,1734983486182,-630.7,0.00015342,2]
[346459097,1734983486192,-820.95,0.00015342,2]
[346459098,1734983486202,-1836.15,0.00015342,2]
[346459099,1734983486211,-1130.83,0.00015342,2]
[346459100,1734983486221,-2323.91,0.00015342,2]
[346459101,1734983486234,-2995.53,0.00015342,2]
[346459102,1734983486244,-516.26,0.00015342,2]
[346459103,1734983486253,-500.0,0.00015342,2]
[346459104,1734983486263,-500.0,0.00015342,2]
[346459105,1734983486274,-1123.17,0.00015342,2]
[346459106,1734983486284,-1155.82,0.00015342,2]
[346459107,1734983486294,-2403.14,0.00015342,2]
[346459108,1734983486305,-810.25,0.00015342,2]
[346459109,1734983486315,-902.0,0.00015342,2]
[346459110,1734983486324,-1314.92,0.00015342,2]
[346459111,1734983486333,-500.0,0.00015342,2]
[346459112,1734983486343,-500.0,0.00015342,2]
[346459113,1734983486352,-5525.58,0.00015342,2]
[346459114,1734983486362,-512.09,0.00015342,2]
[346459115,1734983486371,-500.0,0.00015342,2]
[346459116,1734983486381,-500.0,0.00015342,2]
[346459117,1734983486390,-666.71,0.00015342,2]
[346459118,1734983486400,-2455.92,0.00015342,2]
[346459119,1734983486409,-872.99,0.00015342,2]
[346459120,1734983486419,-4918.98,0.00015342,2]
[346459121,1734983486428,-500.0,0.00015342,2]
[346459122,1734983486437,-500.0,0.00015342,2]
[346459123,1734983486447,-500.0,0.00015342,2]
[346459124,1734983486455,-369.65523733,0.00015342,2]
[346459125,1734983486465,-4475.48,0.00015342,2]
[346459126,1734983486474,-579.5,0.00015342,2]
[346459127,1734983486483,-676.19,0.00015342,2]
[346459128,1734983486494,-553.21,0.00015342,2]